[Event "Pervenstvo PFO 2023_Y19_Rapid"]
[Site "Samara region, Russia"]
[Date "2023.11.11"]
[Round "7.10"]
[White "Yudin, Danil"]
[Black "Kunakkuzin, Rinat"]
[Result "1-0"]
[TimeControl "10:5"]
[WhiteFideId "44171986"]
[BlackFideId "54126584"]
[WhiteElo "1786"]
[BlackElo "1925"]

1. d4 {[%clk 00:10:10]} {[%emt 00:06:29]} a6 {[%clk 00:10:10]} 2. c4 {[%clk
00:10:13]} c6 {[%clk 00:10:14]} 3. Nf3 {[%clk 00:10:15]} {[%emt 00:00:04]} d5
{[%clk 00:10:18]} 4. cxd5 {[%clk 00:10:17]} {[%emt 00:00:03]} cxd5 {[%clk
00:10:22]} {[%emt 00:00:02]} 5. Nc3 {[%clk 00:10:20]} {[%emt 00:00:01]} Nf6
{[%clk 00:10:25]} 6. Bf4 {[%clk 00:10:23]} {[%emt 00:00:02]} Nc6 {[%clk
00:10:28]} {[%emt 00:00:02]} 7. e3 {[%clk 00:10:27]} Bg4 {[%clk 00:10:28]}
{[%emt 00:00:05]} 8. Bd3 {[%clk 00:10:25]} {[%emt 00:00:07]} e6 {[%clk
00:10:31]} {[%emt 00:00:03]} 9. O-O {[%clk 00:10:28]} {[%emt 00:00:02]} Bd6
{[%clk 00:10:34]} {[%emt 00:00:02]} 10. Bg3 {[%clk 00:10:31]} O-O {[%clk
00:10:34]} {[%emt 00:00:05]} 11. Rc1 {[%clk 00:10:28]} {[%emt 00:00:08]} Rc8
{[%clk 00:10:33]} {[%emt 00:00:07]} 12. Na4 {[%clk 00:09:59]} {[%emt 00:00:33]}
Ne4 {[%clk 00:10:07]} {[%emt 00:00:31]} 13. Bxd6 {[%clk 00:10:02]} {[%emt
00:00:02]} Qxd6 {[%clk 00:10:07]} {[%emt 00:00:06]} 14. Nc5 {[%clk 00:10:05]}
{[%emt 00:00:02]} Bxf3 {[%clk 00:09:57]} {[%emt 00:00:14]} 15. Qxf3 {[%clk
00:09:54]} {[%emt 00:00:16]} Nxc5 {[%clk 00:09:46]} {[%emt 00:00:16]} 16. Rxc5
{[%clk 00:09:51]} {[%emt 00:00:07]} Nb4 {[%clk 00:09:38]} {[%emt 00:00:14]} 17.
Rxc8 {[%clk 00:09:49]} {[%emt 00:00:08]} Rxc8 {[%clk 00:09:39]} {[%emt
00:00:04]} 18. Bb1 {[%clk 00:09:52]} {[%emt 00:00:02]} g6 {[%clk 00:09:30]}
{[%emt 00:00:14]} 19. a3 {[%clk 00:09:56]} {[%emt 00:00:02]} Nc6 {[%clk
00:09:34]} 20. Rc1 {[%clk 00:09:45]} {[%emt 00:00:16]} Ne7 {[%clk 00:09:36]}
{[%emt 00:00:03]} 21. Qd1 {[%clk 00:09:21]} {[%emt 00:00:29]} Rc6 {[%clk
00:09:32]} {[%emt 00:00:09]} 22. h4 {[%clk 00:06:36]} {[%emt 00:02:49]} h5
{[%clk 00:09:20]} {[%emt 00:00:17]} 23. Rxc6 {[%clk 00:05:51]} {[%emt
00:00:50]} Nxc6 {[%clk 00:09:20]} {[%emt 00:00:05]} 24. Bd3 {[%clk 00:05:50]}
{[%emt 00:00:07]} e5 {[%clk 00:09:14]} {[%emt 00:00:11]} 25. dxe5 {[%clk
00:05:37]} {[%emt 00:00:17]} Qxe5 {[%clk 00:08:53]} {[%emt 00:00:26]} 26. Qb3
{[%clk 00:05:32]} {[%emt 00:00:10]} b5 {[%clk 00:07:22]} {[%emt 00:01:36]} 27.
Qc2 {[%clk 00:05:14]} {[%emt 00:00:23]} Qd6 {[%clk 00:07:15]} {[%emt 00:00:11]}
28. Qc3 {[%clk 00:03:40]} {[%emt 00:01:37]} Ne5 {[%clk 00:06:54]} {[%emt
00:00:30]} 29. Be2 {[%clk 00:02:58]} {[%emt 00:00:47]} Kh7 {[%clk 00:05:43]}
{[%emt 00:01:16]} 30. Qd4 {[%clk 00:02:14]} {[%emt 00:00:48]} Nc6 {[%clk
00:05:30]} {[%emt 00:00:18]} 31. Qb6 {[%clk 00:02:08]} {[%emt 00:00:05]} Qf6
{[%clk 00:04:19]} {[%emt 00:01:22]} 32. Bf3 {[%clk 00:01:38]} {[%emt 00:00:36]}
Qe6 {[%clk 00:03:01]} {[%emt 00:01:23]} 33. Qxa6 {[%clk 00:01:33]} {[%emt
00:00:10]} b4 {[%clk 00:02:45]} {[%emt 00:00:21]} 34. a4 {[%clk 00:01:15]}
{[%emt 00:00:23]} Qd7 {[%clk 00:02:35]} {[%emt 00:00:14]} 35. Qb5 {[%clk
00:01:12]} {[%emt 00:00:09]} Qc7 {[%clk 00:02:28]} {[%emt 00:00:12]} 36. Qxd5
{[%clk 00:00:36]} {[%emt 00:00:41]} Ne5 {[%clk 00:02:23]} {[%emt 00:00:10]} 37.
a5 {[%clk 00:00:27]} {[%emt 00:00:14]} Qc1+ {[%clk 00:01:44]} {[%emt 00:00:43]}
38. Kh2 {[%clk 00:00:09]} {[%emt 00:00:23]} Qxb2 {[%clk 00:01:45]} {[%emt
00:00:04]} 39. a6 {[%clk 00:00:11]} {[%emt 00:00:04]} Qxf2 {[%clk 00:00:56]}
{[%emt 00:00:54]} 40. Qe4 {[%clk 00:00:08]} {[%emt 00:00:08]} Nc6 {[%clk
00:00:33]} {[%emt 00:00:27]} 41. Qf4 {[%clk 00:00:07]} {[%emt 00:00:06]} Kg7
{[%clk 00:00:24]} {[%emt 00:00:14]} 42. Bxc6 {[%clk 00:00:10]} {[%emt
00:00:02]} Qa2 {[%clk 00:00:21]} {[%emt 00:00:08]} 43. Qd4+ {[%clk 00:00:11]}
{[%emt 00:00:04]} Kh7 {[%clk 00:00:21]} {[%emt 00:00:05]} 44. a7 {[%clk
00:00:16]} {[%emt 00:00:01]} 1-0

[ePGN "0.1;DGT LiveChess/2.2.5"]

[Event "Pervenstvo PFO 2023_Y19_Rapid"]
[Site "Samara region, Russia"]
[Date "2023.11.11"]
[Round "8.1"]
[White "Konstantinov, Nikita"]
[Black "Mochalov, Dmitriy"]
[Result "1/2-1/2"]
[TimeControl "10:5"]
[WhiteFideId "44165250"]
[BlackFideId "44179634"]
[WhiteElo "2074"]
[BlackElo "2194"]

1. e4 {[%clk 00:10:10]} c5 {[%clk 00:10:08]} {[%emt 00:00:03]} 2. Nc3 {[%clk
00:10:14]} Nc6 {[%clk 00:10:11]} {[%emt 00:00:02]} 3. g3 {[%clk 00:10:18]} g6
{[%clk 00:10:14]} {[%emt 00:00:01]} 4. Bg2 {[%clk 00:10:23]} Bg7 {[%clk
00:10:17]} {[%emt 00:00:02]} 5. Nge2 {[%clk 00:10:27]} {[%emt 00:00:01]} d6
{[%clk 00:10:14]} {[%emt 00:00:08]} 6. O-O {[%clk 00:10:29]} {[%emt 00:00:03]}
Rb8 {[%clk 00:10:15]} {[%emt 00:00:04]} 7. a4 {[%clk 00:10:29]} {[%emt
00:00:05]} a6 {[%clk 00:10:10]} {[%emt 00:00:10]} 8. f4 {[%clk 00:10:22]}
{[%emt 00:00:12]} e6 {[%clk 00:10:11]} {[%emt 00:00:04]} 9. d3 {[%clk
00:10:20]} {[%emt 00:00:07]} Nge7 {[%clk 00:10:13]} {[%emt 00:00:02]} 10. Be3
{[%clk 00:09:59]} {[%emt 00:00:26]} Nd4 {[%clk 00:10:17]} {[%emt 00:00:02]} 11.
Rb1 {[%clk 00:09:36]} {[%emt 00:00:28]} Nec6 {[%clk 00:10:07]} {[%emt
00:00:15]} 12. Qd2 {[%clk 00:09:03]} {[%emt 00:00:38]} b5 {[%clk 00:10:10]}
{[%emt 00:00:02]} 13. axb5 axb5 {[%clk 00:10:13]} 14. Nd1 {[%clk 00:08:47]}
{[%emt 00:00:25]} b4 {[%clk 00:10:15]} {[%emt 00:00:03]} 15. Nf2 {[%clk
00:08:26]} {[%emt 00:00:26]} O-O {[%clk 00:10:12]} {[%emt 00:00:08]} 16. e5
{[%clk 00:07:34]} {[%emt 00:00:57]} dxe5 {[%clk 00:10:09]} {[%emt 00:00:08]} 17.
c3 {[%clk 00:06:27]} {[%emt 00:01:12]} exf4 {[%clk 00:09:51]} {[%emt 00:00:23]}
18. Bxf4 {[%clk 00:05:05]} {[%emt 00:01:27]} bxc3 {[%clk 00:09:27]} {[%emt
00:00:29]} 19. bxc3 {[%clk 00:04:56]} {[%emt 00:00:14]} Rxb1 {[%clk 00:09:26]}
{[%emt 00:00:06]} 20. Rxb1 {[%clk 00:05:00]} Nxe2+ {[%clk 00:09:29]} {[%emt
00:00:02]} 21. Qxe2 {[%clk 00:05:04]} Ne7 {[%clk 00:09:33]} 22. Be5 {[%clk
00:04:25]} {[%emt 00:00:44]} Nd5 {[%clk 00:09:06]} {[%emt 00:00:31]} 23. Bxg7
Kxg7 {[%clk 00:09:10]} 24. c4 {[%clk 00:02:55]} {[%emt 00:01:07]} Nc3 {[%clk
00:08:30]} {[%emt 00:00:45]} 25. Qe5+ {[%clk 00:03:00]} Qf6 {[%clk 00:08:34]}
26. Qxf6+ {[%clk 00:03:04]} {[%emt 00:00:01]} Kxf6 {[%clk 00:08:38]} 27. Rb3
{[%clk 00:03:08]} Ne2+ {[%clk 00:08:42]} 28. Kf1 {[%clk 00:03:11]} {[%emt
00:00:01]} Nd4 {[%clk 00:08:46]} {[%emt 00:00:02]} 29. Ne4+ {[%clk 00:03:05]}
{[%emt 00:00:10]} Ke5 {[%clk 00:08:50]} {[%emt 00:00:02]} 30. Rb8 {[%clk
00:03:01]} {[%emt 00:00:06]} Nc6 {[%clk 00:08:33]} {[%emt 00:00:24]} 31. Ra8
{[%clk 00:02:21]} {[%emt 00:00:45]} Ne7 {[%clk 00:07:10]} {[%emt 00:01:29]} 32.
Nxc5 {[%clk 00:01:53]} {[%emt 00:00:33]} Kd4 {[%clk 00:07:11]} {[%emt
00:00:03]} 33. Nd7 {[%clk 00:01:07]} {[%emt 00:00:51]} Rd8 {[%clk 00:07:07]}
{[%emt 00:00:10]} 34. Nb6 {[%clk 00:01:11]} {[%emt 00:00:01]} Kc5 {[%clk
00:07:10]} {[%emt 00:00:02]} 35. Nxc8 {[%clk 00:00:37]} {[%emt 00:00:39]} Rxc8
{[%clk 00:07:14]} {[%emt 00:00:02]} 36. Ra7 {[%clk 00:00:40]} Kd6 {[%clk
00:06:54]} {[%emt 00:00:25]} 37. Ra6+ {[%clk 00:00:14]} {[%emt 00:00:32]} Ke5
{[%clk 00:06:58]} {[%emt 00:00:01]} 38. Ra5+ {[%clk 00:00:18]} Kd4 {[%clk
00:06:57]} {[%emt 00:00:05]} 39. Ra7 {[%clk 00:00:20]} {[%emt 00:00:04]} Nf5
{[%clk 00:06:54]} {[%emt 00:00:09]} 40. Rxf7 {[%emt 00:00:20]} Kxd3 {[%emt
00:00:02]} 41. Rxh7 {[%emt 00:00:04]} Rxc4 {[%emt 00:00:01]} 1/2-1/2

[Event "Pervenstvo PFO 2023_Y19_Rapid"]
[Site "Samara region, Russia"]
[Date "2023.11.11"]
[Round "8.2"]
[White "Ivanov, Matvei"]
[Black "Lydin, Vladislav"]
[Result "0-1"]
[TimeControl "10:5"]
[WhiteFideId "54131987"]
[BlackFideId "44195990"]
[WhiteElo "1918"]
[BlackElo "2005"]

1. Nf3 {[%clk 00:10:09]} Nf6 {[%clk 00:10:09]} 2. g3 {[%clk 00:10:14]} g6
{[%clk 00:10:14]} {[%emt 00:00:02]} 3. b3 {[%clk 00:10:18]} Bg7 {[%clk
00:10:17]} {[%emt 00:00:02]} 4. Bb2 {[%clk 00:10:23]} O-O {[%clk 00:10:20]}
{[%emt 00:00:01]} 5. Bg2 {[%clk 00:10:27]} d6 {[%clk 00:10:24]} 6. O-O {[%clk
00:10:31]} {[%emt 00:00:01]} e5 {[%clk 00:10:28]} {[%emt 00:00:01]} 7. c4
{[%clk 00:10:20]} {[%emt 00:00:16]} Nbd7 {[%clk 00:10:24]} {[%emt 00:00:08]} 8.
d4 {[%clk 00:10:09]} {[%emt 00:00:17]} e4 {[%clk 00:10:11]} {[%emt 00:00:17]} 9.
Nfd2 {[%clk 00:10:13]} {[%emt 00:00:02]} Re8 {[%clk 00:10:15]} {[%emt
00:00:01]} 10. Nc3 {[%clk 00:07:05]} {[%emt 00:03:13]} e3 {[%clk 00:10:19]}
{[%emt 00:00:01]} 11. fxe3 {[%clk 00:07:08]} {[%emt 00:00:03]} Ng4 {[%clk
00:10:17]} {[%emt 00:00:06]} 12. Nd5 {[%clk 00:03:44]} {[%emt 00:03:29]} c6
{[%clk 00:10:21]} 13. h3 {[%clk 00:03:48]} Nh6 {[%clk 00:09:47]} {[%emt
00:00:40]} 14. Nf4 {[%clk 00:02:41]} {[%emt 00:01:12]} Nf5 {[%clk 00:09:50]}
{[%emt 00:00:02]} 15. Rf3 {[%clk 00:01:57]} {[%emt 00:00:48]} Nxe3 {[%clk
00:09:49]} {[%emt 00:00:06]} 16. Qc1 {[%clk 00:01:45]} {[%emt 00:00:18]} Nf5
{[%clk 00:08:11]} {[%emt 00:01:44]} 17. Rd3 {[%clk 00:01:46]} {[%emt 00:00:04]}
Qb6 {[%clk 00:08:12]} {[%emt 00:00:03]} 18. Nf3 {[%clk 00:01:46]} {[%emt
00:00:05]} Nxg3 {[%clk 00:08:13]} {[%emt 00:00:04]} 19. Qe1 {[%clk 00:01:10]}
{[%emt 00:00:41]} Nf5 {[%clk 00:08:14]} {[%emt 00:00:03]} 20. e3 {[%clk
00:00:37]} {[%emt 00:00:39]} Bh6 {[%clk 00:06:52]} {[%emt 00:01:27]} 21. Qf2
{[%clk 00:00:13]} {[%emt 00:00:29]} Nf6 {[%clk 00:06:53]} {[%emt 00:00:03]} 22.
Nd2 {[%clk 00:00:15]} {[%emt 00:00:03]} d5 {[%clk 00:05:58]} {[%emt 00:01:00]}
23. cxd5 {[%clk 00:00:13]} {[%emt 00:00:08]} cxd5 {[%clk 00:06:02]} 24. Re1
{[%emt 00:00:12]} Qd6 {[%clk 00:03:51]} {[%emt 00:02:14]} 25. a4 {[%clk
00:00:08]} {[%emt 00:00:05]} Bd7 {[%clk 00:03:47]} {[%emt 00:00:09]} 26. Bc3
{[%clk 00:00:09]} {[%emt 00:00:04]} b5 {[%clk 00:03:37]} {[%emt 00:00:15]} 27.
Qf3 {[%clk 00:00:10]} {[%emt 00:00:05]} Bxf4 {[%clk 00:03:34]} {[%emt
00:00:06]} 28. Rf1 {[%clk 00:00:09]} {[%emt 00:00:07]} Bxe3+ {[%clk 00:03:34]}
{[%emt 00:00:05]} 0-1

[Event "Pervenstvo PFO 2023_Y19_Rapid"]
[Site "Samara region, Russia"]
[Date "2023.11.11"]
[Round "8.3"]
[White "Galyaviev, Samat"]
[Black "Sadykov, Ilgiz A."]
[Result "1-0"]
[TimeControl "10:5"]
[WhiteFideId "44168470"]
[BlackFideId "34286217"]
[WhiteElo "2030"]
[BlackElo "1675"]

1. d4 {[%clk 00:10:09]} {[%emt 00:03:33]} Nf6 {[%clk 00:10:09]} {[%emt
00:00:02]} 2. Nf3 {[%clk 00:10:13]} {[%emt 00:00:01]} e6 {[%clk 00:10:12]}
{[%emt 00:00:02]} 3. Bf4 {[%clk 00:10:17]} {[%emt 00:00:01]} d5 {[%clk
00:10:15]} {[%emt 00:00:02]} 4. e3 {[%clk 00:10:21]} Be7 {[%clk 00:10:17]}
{[%emt 00:00:02]} 5. Nbd2 {[%clk 00:10:24]} {[%emt 00:00:02]} c5 {[%clk
00:10:19]} {[%emt 00:00:03]} 6. c3 {[%clk 00:10:28]} {[%emt 00:00:01]} Nc6
{[%clk 00:10:22]} {[%emt 00:00:02]} 7. Bd3 {[%clk 00:10:31]} {[%emt 00:00:02]}
O-O {[%clk 00:10:23]} {[%emt 00:00:04]} 8. Ne5 {[%clk 00:10:35]} {[%emt
00:00:02]} Nd7 {[%clk 00:09:54]} {[%emt 00:00:34]} 9. Qh5 {[%clk 00:09:59]}
{[%emt 00:00:41]} f5 {[%clk 00:09:28]} {[%emt 00:00:31]} 10. Nxd7 {[%clk
00:08:44]} {[%emt 00:01:20]} Bxd7 {[%clk 00:09:28]} {[%emt 00:00:04]} 11. g4
{[%clk 00:08:25]} {[%emt 00:00:24]} g6 {[%clk 00:09:13]} {[%emt 00:00:21]} 12.
Qh6 {[%clk 00:08:24]} {[%emt 00:00:06]} cxd4 {[%clk 00:08:43]} {[%emt
00:00:34]} 13. exd4 {[%clk 00:07:13]} {[%emt 00:01:16]} Bf6 {[%clk 00:08:35]}
{[%emt 00:00:13]} 14. gxf5 {[%clk 00:06:43]} {[%emt 00:00:35]} exf5 {[%clk
00:08:37]} {[%emt 00:00:02]} 15. Nf3 {[%clk 00:06:21]} {[%emt 00:00:27]} Qe7+
{[%clk 00:08:28]} {[%emt 00:00:14]} 16. Kf1 {[%clk 00:06:19]} {[%emt 00:00:08]}
Qg7 {[%clk 00:08:15]} {[%emt 00:00:18]} 17. Qxg7+ {[%clk 00:06:05]} {[%emt
00:00:19]} Kxg7 {[%clk 00:08:12]} {[%emt 00:00:07]} 18. h4 {[%clk 00:06:09]}
{[%emt 00:00:01]} h6 {[%clk 00:08:05]} {[%emt 00:00:12]} 19. Rg1 {[%clk
00:06:07]} {[%emt 00:00:07]} Rae8 {[%clk 00:07:46]} {[%emt 00:00:24]} 20. Re1
{[%clk 00:06:07]} {[%emt 00:00:04]} Re4 {[%clk 00:07:27]} {[%emt 00:00:25]} 21.
Bxe4 {[%clk 00:04:26]} {[%emt 00:01:46]} fxe4 {[%clk 00:07:29]} {[%emt
00:00:02]} 22. Ne5 {[%clk 00:04:29]} {[%emt 00:00:02]} Nxe5 {[%clk 00:06:34]}
{[%emt 00:01:00]} 23. Bxe5 {[%clk 00:04:31]} {[%emt 00:00:03]} Bxe5 {[%clk
00:06:21]} {[%emt 00:00:18]} 24. dxe5 {[%clk 00:04:35]} {[%emt 00:00:02]} Bh3+
{[%clk 00:06:24]} {[%emt 00:00:01]} 25. Ke2 {[%clk 00:04:36]} {[%emt 00:00:04]}
Rf4 {[%clk 00:06:22]} {[%emt 00:00:07]} 26. Ke3 {[%clk 00:03:58]} {[%emt
00:00:44]} Rxh4 {[%clk 00:05:14]} {[%emt 00:01:13]} 27. Kd4 {[%clk 00:03:29]}
{[%emt 00:00:33]} Be6 {[%clk 00:05:12]} {[%emt 00:00:07]} 28. Kc5 {[%clk
00:03:27]} {[%emt 00:00:07]} Rf4 {[%clk 00:05:10]} {[%emt 00:00:07]} 29. Kd6
{[%clk 00:03:26]} {[%emt 00:00:06]} Kf7 {[%clk 00:05:14]} {[%emt 00:00:01]} 30.
Rxg6 {[%clk 00:02:28]} {[%emt 00:01:03]} Kxg6 {[%clk 00:05:03]} {[%emt
00:00:15]} 31. Kxe6 {[%clk 00:02:32]} {[%emt 00:00:02]} Rxf2 {[%clk 00:05:04]}
{[%emt 00:00:04]} 32. Rg1 {[%clk 00:02:21]} {[%emt 00:00:15]} Kh7 {[%clk
00:05:06]} {[%emt 00:00:03]} 33. Kd6 {[%clk 00:02:15]} {[%emt 00:00:12]} e3
{[%clk 00:02:19]} {[%emt 00:02:52]} 34. e6 {[%clk 00:02:18]} {[%emt 00:00:02]}
Rf4 {[%clk 00:01:52]} {[%emt 00:00:32]} 35. e7 {[%clk 00:02:21]} {[%emt
00:00:02]} Re4 {[%clk 00:01:56]} {[%emt 00:00:01]} 36. Kd7 {[%clk 00:02:25]}
{[%emt 00:00:02]} e2 {[%clk 00:01:59]} {[%emt 00:00:02]} 37. e8=Q {[%clk
00:02:16]} {[%emt 00:00:13]} 1-0